fUST/lending_fUST_20250819
["ID","MTS","AMOUNT","RATE_DAILY","PERIOD"]
[380162078,1755587369973,-135.42629108,0.00019178,2]
[380162079,1755587369982,-491.24,0.00019178,2]
[380162080,1755587369992,-491.99556271,0.00019178,2]
[380162081,1755587370002,-480.0,0.00019178,2]
[380162082,1755587370012,-1383.89,0.00019178,2]
[380162083,1755587370021,-480.0,0.00019178,2]
[380162084,1755587370032,-480.0,0.00019178,2]
[380162085,1755587370041,-480.0,0.00019178,2]
[380162086,1755587370051,-577.44814621,0.00019178,2]
[380162087,1755587370070,-3785.29185379,0.00019178,2]
[380162088,1755587370080,-480.0,0.00019178,2]
[380162089,1755587370089,-480.0,0.00019178,2]
[380162090,1755587370099,-254.70814621,0.00019178,2]
[380162091,1755587370121,-1459.66185379,0.00019178,2]
[380162092,1755587370132,-480.0,0.00019178,2]
[380162093,1755587370141,-480.0,0.00019178,2]
[380162094,1755587370150,-480.0,0.00019178,2]
[380162095,1755587370160,-480.0,0.00019178,2]
[380162096,1755587370169,-592.57,0.00019178,2]
[380162097,1755587370179,-480.0,0.00019178,2]
[380162098,1755587370188,-338.64135909,0.00019178,2]
[380162099,1755587370211,-121.35864091,0.00019178,2]
[380162100,1755587370220,-1743.53,0.00019178,2]
[380162101,1755587370231,-400.0,0.00019178,2]
[380162102,1755587370240,-480.0,0.00019178,2]
[380162103,1755587370249,-480.0,0.00019178,2]
[380162104,1755587370259,-480.0,0.00019178,2]
[380162105,1755587370268,-480.0,0.00019178,2]
[380162106,1755587370278,-396.85778485,0.00019178,2]
[380162107,1755587370298,-83.14221515,0.00019178,2]
[380162108,1755587370307,-480.0,0.00019178,2]
[380162109,1755587370326,-518.04,0.00019178,2]
[380162110,1755587370340,-480.0,0.00019178,2]
[380162111,1755587370349,-480.0,0.00019178,2]
[380162113,1755587426797,157.539265,0.00013699,2]
[380162122,1755587432510,-302.51602579,0.00019044,2]
[380162123,1755587432520,-137.04897421,0.00019077,2]
[380162127,1755587432581,-30.66311713,0.00019077,2]
[380162128,1755587432590,-151.0,0.00019166,2]
[380162129,1755587432599,-2201.11271787,0.00019166,2]
[380162130,1755587432608,-300.0,0.00019177,2]
[380162131,1755587432618,-300.0,0.00019177,2]
[380162132,1755587432627,-1200.0,0.00019177,2]
[380162133,1755587432636,-481.56245632,0.00019178,2]
[380162134,1755587432646,-79.76031312,0.00019178,2]
[380162160,1755587438572,-400.23968688,0.00019178,2]
[380162161,1755587438581,-1016.08822337,0.00019178,2]
[380162162,1755587438593,-396.09177663,0.00019178,2]
[380162163,1755587438602,-480.0,0.00019178,2]
[380162164,1755587438612,-489.68,0.00019178,2]
[380162165,1755587438621,-4873.17,0.00019178,2]
[380162166,1755587438631,-480.0,0.00019178,2]
[380162167,1755587438642,-1405.21,0.00019178,2]
[380162168,1755587438651,-480.0,0.00019178,2]
[380162169,1755587438661,-480.0,0.00019178,2]
[380162170,1755587438671,-480.0,0.00019178,2]
[380162171,1755587438680,-1707.9894563,0.00019178,2]
[380162172,1755587438690,-480.0,0.00019178,2]
[380162173,1755587438699,-480.0,0.00019178,2]
[380162174,1755587438709,-271.26435825,0.00019178,2]
[380162175,1755587438719,-480.0,0.00019178,2]
[380162176,1755587438732,-480.0,0.00019178,2]
[380162177,1755587438743,-270.31,0.00019178,2]
[380162178,1755587438752,-480.0,0.00019178,2]
[380162179,1755587438762,-602.95,0.00019178,2]
[380162180,1755587438772,-1489.71,0.00019178,2]
[380162181,1755587438781,-480.0,0.00019178,2]
[380162182,1755587438792,-495.82,0.00019178,2]
[380162183,1755587438802,-480.0,0.00019178,2]
[380162184,1755587438812,-480.0,0.00019178,2]
[380162185,1755587438822,-492.98774424,0.00019178,2]
[380162186,1755587438831,-484.06795447,0.00019178,2]
[380162187,1755587438840,-480.0,0.00019178,2]
[380162188,1755587438849,-480.0,0.00019178,2]
[380162189,1755587438858,-385.0399947,0.00019178,2]
[380162190,1755587438868,-462.12345675,0.00019178,2]
[380162191,1755587438877,-480.0,0.00019178,2]
[380162192,1755587438886,-480.0,0.00019178,2]
[380162193,1755587438896,-480.0,0.00019178,2]
[380162194,1755587438905,-2968.58,0.00019178,2]
[380162195,1755587438914,-486.91,0.00019178,2]
[380162196,1755587438923,-480.0,0.00019178,2]
[380162197,1755587438933,-480.0,0.00019178,2]
[380162198,1755587438942,-666.0,0.00019178,2]
[380162199,1755587438952,-5000.0,0.00019178,2]
[380162200,1755587438961,-5000.0,0.00019178,2]
[380162201,1755587438970,-4982.29712879,0.00019178,2]
[380162202,1755587438979,-3000.0,0.000192,2]
[380162203,1755587438988,-3000.0,0.000192,2]
[380162204,1755587438998,-1699.07765924,0.00019284,2]
[380162205,1755587439007,-151.0,0.000193,2]
[380162206,1755587439016,-1633.77047188,0.00019329,2]
[380162207,1755587439026,-1762.0,0.00019329,2]
[380162208,1755587439036,-1762.0,0.00019329,2]
[380162209,1755587439046,-1762.0,0.00019329,2]
[380162210,1755587439055,-1762.0,0.00019329,2]
[380162211,1755587439064,-326.0,0.00019329,2]
[380162212,1755587439074,-326.0,0.00019329,2]
[380162213,1755587439083,-326.0,0.00019329,2]
[380162214,1755587439092,-1000.0,0.00019329,2]
[380162215,1755587439102,-1000.0,0.00019329,2]
[380162216,1755587439112,-1000.0,0.00019329,2]
[380162217,1755587439121,-1002.82762429,0.00019329,2]
[380162218,1755587439131,-500.0,0.00019329,2]
[380162219,1755587439141,-17910.55234699,0.00019352,2]
[380162220,1755587439150,-1442.06639537,0.00019352,2]
[380162221,1755587439159,-1000.0,0.00019381,5]
[380162222,1755587439168,-184.18210763,0.00019396,2]
[380162223,1755587439178,-790.0,0.00019399,2]
[380162224,1755587439187,-151.0,0.000194,2]
[380162225,1755587439197,-480.0,0.00019452,2]
[380162226,1755587439206,-480.0,0.00019452,2]
[380162227,1755587439215,-480.0,0.00019452,2]
[380162228,1755587439225,-480.0,0.00019452,2]
[380162229,1755587439234,-480.0,0.00019452,2]
[380162230,1755587439243,-229.30299971,0.00019452,2]
[380162231,1755587439253,-480.0,0.00019452,2]
[380162232,1755587439263,-322.87024294,0.00019452,2]
[380162233,1755587439272,-480.0,0.00019452,2]
[380162234,1755587439281,-480.0,0.00019452,2]
[380162235,1755587439291,-480.0,0.00019452,2]
[380162236,1755587439300,-480.0,0.00019452,2]
[380162237,1755587439309,-480.0,0.00019452,2]
[380162238,1755587439319,-480.0,0.00019452,2]
[380162239,1755587439328,-416.00757877,0.00019452,2]
[380162240,1755587439337,-480.0,0.00019452,2]
[380162241,1755587439347,-480.0,0.00019452,2]
[380162242,1755587439361,-702.91,0.00019452,2]
[380162243,1755587439370,-480.0,0.00019452,2]
[380162244,1755587439380,-480.0,0.00019452,2]
[380162245,1755587439391,-480.0,0.00019452,2]
[380162246,1755587439401,-579.96,0.00019452,2]
[380162247,1755587439410,-480.0,0.00019452,2]
[380162248,1755587439419,-583.15,0.00019452,2]
[380162249,1755587439432,-480.0,0.00019452,2]
[380162250,1755587439443,-480.0,0.00019452,2]
[380162251,1755587439453,-480.0,0.00019452,2]
[380162252,1755587439464,-480.0,0.00019452,2]
[380162253,1755587439474,-480.0,0.00019452,2]
[380162254,1755587439484,-480.0,0.00019452,2]
[380162255,1755587439494,-480.0,0.00019452,2]
[380162256,1755587439503,-480.0,0.00019452,2]
[380162257,1755587439513,-480.0,0.00019452,2]
[380162258,1755587439523,-1535.6,0.00019452,2]
[380162259,1755587439533,-480.0,0.00019452,2]
[380162260,1755587439544,-480.0,0.00019452,2]
[380162261,1755587439554,-480.0,0.00019452,2]
[380162262,1755587439563,-573.49,0.00019452,2]
[380162263,1755587439572,-522.35617585,0.00019452,2]
[380162264,1755587439581,-1235.79,0.00019452,2]
[380162265,1755587439591,-480.0,0.00019452,2]
[380162266,1755587439600,-480.0,0.00019452,2]
[380162267,1755587439609,-578.97,0.00019452,2]
[380162268,1755587439619,-480.0,0.00019452,2]
[380162269,1755587439628,-480.0,0.00019452,2]
[380162270,1755587439637,-934.67,0.00019452,2]
[380162271,1755587439647,-480.0,0.00019452,2]
[380162272,1755587439656,-480.0,0.00019452,2]
[380162273,1755587439665,-637.06,0.00019452,2]
[380162274,1755587439675,-480.0,0.00019452,2]
[380162275,1755587439684,-533.44,0.00019452,2]
[380162276,1755587439694,-748.89,0.00019452,2]
[380162277,1755587439703,-480.0,0.00019452,2]
[380162278,1755587439712,-480.0,0.00019452,2]
[380162279,1755587439722,-480.0,0.00019452,2]
[380162280,1755587439731,-480.0,0.00019452,2]
[380162281,1755587439741,-665.5,0.00019452,2]
[380162282,1755587439750,-480.0,0.00019452,2]
[380162283,1755587439760,-480.0,0.00019452,2]
[380162284,1755587439769,-689.17,0.00019452,2]
[380162285,1755587439779,-480.0,0.00019452,2]
[380162286,1755587439789,-480.0,0.00019452,2]
[380162287,1755587439799,-480.0,0.00019452,2]
[380162288,1755587439808,-480.0,0.00019452,2]
[380162289,1755587439818,-480.0,0.00019452,2]
[380162290,1755587439828,-480.0,0.00019452,2]
[380162291,1755587439837,-1267.08,0.00019452,2]
[380162292,1755587439846,-480.0,0.00019452,2]
[380162293,1755587439857,-480.0,0.00019452,2]
[380162294,1755587439867,-480.0,0.00019452,2]
[380162295,1755587439876,-480.0,0.00019452,2]
[380162296,1755587439886,-480.0,0.00019452,2]
[380162297,1755587439895,-696.3,0.00019452,2]
[380162298,1755587439905,-519.72374108,0.00019452,2]
[380162299,1755587439914,-480.0,0.00019452,2]
[380162301,1755587439925,-480.0,0.00019452,2]
[380162302,1755587439934,-480.0,0.00019452,2]
[380162303,1755587439943,-548.76,0.00019452,2]
[380162304,1755587439953,-480.0,0.00019452,2]
[380162305,1755587439963,-480.0,0.00019452,2]
[380162306,1755587440074,-480.0,0.00019452,2]
[380162307,1755587440084,-1281.2,0.00019452,2]
[380162308,1755587440094,-480.0,0.00019452,2]
[380162309,1755587440103,-480.0,0.00019452,2]
[380162310,1755587440113,-480.0,0.00019452,2]
[380162311,1755587440123,-668.77,0.00019452,2]
[380162312,1755587440133,-480.0,0.00019452,2]
[380162313,1755587440142,-480.0,0.00019452,2]
[380162314,1755587440152,-1088.03,0.00019452,2]
[380162315,1755587440161,-480.0,0.00019452,2]
[380162317,1755587440171,-485.93804082,0.00019452,2]
[380162319,1755587440180,-730.04,0.00019452,2]
[380162321,1755587440189,-480.0,0.00019452,2]
[380162323,1755587440199,-480.0,0.00019452,2]
[380162325,1755587440208,-1050.51,0.00019452,2]
[380162327,1755587440217,-480.0,0.00019452,2]
[380162329,1755587440227,-480.0,0.00019452,2]
[380162331,1755587440237,-480.0,0.00019452,2]
[380162333,1755587440246,-1244.04,0.00019452,2]
[380162335,1755587440255,-480.0,0.00019452,2]
[380162337,1755587440265,-480.0,0.00019452,2]
[380162339,1755587440274,-681.67,0.00019452,2]
[380162341,1755587440284,-362.82984779,0.00019452,2]
[380162343,1755587440295,-1270.7,0.00019452,2]
[380162345,1755587440304,-480.0,0.00019452,2]
[380162347,1755587440313,-292.33744217,0.00019452,2]
[380162363,1755587440470,-480.0,0.00019178,2]
[380162365,1755587440479,-282.50255783,0.00019452,2]
[380162367,1755587440489,-1363.61,0.00019452,2]
[380162369,1755587440498,-2256.1,0.00019452,2]
[380162371,1755587440508,-192.18021403,0.00019452,2]
[380162373,1755587440518,-480.0,0.00019452,2]
[380162375,1755587440527,-245.70722814,0.00019452,2]
[380162377,1755587440540,-380.21277186,0.00019452,2]
[380162379,1755587440549,-420.0,0.00019452,2]
[380162381,1755587440558,-480.0,0.00019452,2]
[380162383,1755587440567,-480.0,0.00019452,2]
[380162385,1755587440576,-480.0,0.00019452,2]
[380162387,1755587440585,-944.73,0.00019452,2]
[380162389,1755587440594,-480.0,0.00019452,2]
[380162391,1755587440603,-536.82,0.00019452,2]
[380162393,1755587440613,-29.23722808,0.00019452,2]
[380162548,1755587443554,-480.0,0.00019178,2]
[380162549,1755587443564,-1174.44,0.00019178,2]
[380162550,1755587443574,-527.34277192,0.00019452,2]
[380162551,1755587443583,-3022.35,0.00019452,2]
[380162552,1755587443592,-491.24,0.00019452,2]
[380162553,1755587443602,-480.0,0.00019452,2]
[380162554,1755587443612,-480.0,0.00019452,2]
[380162555,1755587443622,-4362.74,0.00019452,2]
[380162556,1755587443631,-531.59138549,0.00019452,2]
[380162557,1755587443640,-1651.28332123,0.00019452,2]
[380162558,1755587443652,-63.08667877,0.00019452,2]
[380162559,1755587443662,-480.0,0.00019452,2]
[380162560,1755587443672,-480.0,0.00019452,2]
[380162561,1755587443683,-480.0,0.00019452,2]
[380162562,1755587443693,-592.57,0.00019452,2]
[380162563,1755587443703,-480.0,0.00019452,2]
[380162564,1755587443713,-1743.53,0.00019452,2]
[380162565,1755587443722,-480.0,0.00019452,2]
[380162566,1755587443732,-480.0,0.00019452,2]
[380162567,1755587443741,-480.0,0.00019452,2]
[380162568,1755587443751,-480.0,0.00019452,2]
[380162569,1755587443760,-480.0,0.00019452,2]
[380162570,1755587443770,-480.0,0.00019452,2]
[380162571,1755587443779,-518.04,0.00019452,2]
[380162572,1755587443788,-480.0,0.00019452,2]
[380162573,1755587443798,-1412.18,0.00019452,2]
[380162574,1755587443807,-13.09332223,0.00019452,2]
[380162575,1755587443819,-466.90667777,0.00019452,2]
[380162576,1755587443828,-489.68,0.00019452,2]
[380162577,1755587443838,-923.03869685,0.00019452,2]
[380162578,1755587443849,-3950.13130315,0.00019452,2]
[380162579,1755587443859,-480.0,0.00019452,2]
[380162580,1755587443868,-1405.21,0.00019452,2]
[380162581,1755587443878,-480.0,0.00019452,2]
[380162582,1755587443887,-480.0,0.00019452,2]
[380162583,1755587443897,-480.0,0.00019452,2]
[380162584,1755587443907,-480.0,0.00019452,2]
[380162585,1755587443916,-602.95,0.00019452,2]
[380162586,1755587443925,-1489.71,0.00019452,2]
[380162587,1755587443935,-480.0,0.00019452,2]
[380162588,1755587443944,-495.82,0.00019452,2]
[380162589,1755587443954,-480.0,0.00019452,2]
[380162590,1755587443963,-480.0,0.00019452,2]
[380162591,1755587443973,-480.0,0.00019452,2]
[380162592,1755587443983,-480.0,0.00019452,2]
[380162593,1755587443992,-480.0,0.00019452,2]
[380162594,1755587444001,-2968.58,0.00019452,2]
[380162595,1755587444010,-486.91,0.00019452,2]
[380162596,1755587444019,-221.15,0.00019452,2]
[380162597,1755587444028,-480.0,0.00019452,2]
[380162598,1755587444038,-480.0,0.00019452,2]
[380162599,1755587444049,-480.0,0.00019452,2]
[380162600,1755587444059,-1174.44,0.00019452,2]
[380162601,1755587444068,-500.0,0.00019473,2]
[380162602,1755587444078,-790.0,0.0001948,2]
[380162603,1755587444087,-1699.07765924,0.00019489,2]
[380162604,1755587444096,-151.0,0.000195,2]
[380162605,1755587444105,-160.0,0.00019547,4]
[380162606,1755587444114,-200.0,0.00019561,20]
[380162607,1755587444124,-200.0,0.00019561,20]
[380162608,1755587444134,-200.0,0.00019561,20]
[380162609,1755587444143,-200.0,0.00019561,20]
[380162610,1755587444152,-200.0,0.00019561,20]
[380162611,1755587444162,-200.0,0.00019561,20]
[380162612,1755587444171,-200.0,0.00019561,20]
[380162613,1755587444180,-200.0,0.00019561,20]
[380162614,1755587444190,-200.0,0.00019561,20]
[380162615,1755587444200,-200.0,0.00019561,20]
[380162616,1755587444209,-200.0,0.00019561,20]
[380162617,1755587444219,-200.0,0.00019561,20]
[380162618,1755587444228,-200.0,0.00019561,20]
[380162619,1755587444237,-200.0,0.00019561,20]
[380162620,1755587444247,-200.0,0.00019561,20]
[380162621,1755587444255,-200.0,0.00019561,20]
[380162622,1755587444265,-200.0,0.00019561,20]
[380162623,1755587444274,-200.0,0.00019561,20]
[380162624,1755587444283,-200.0,0.00019561,20]
[380162625,1755587444292,-200.0,0.00019561,20]
[380162626,1755587444302,-260.01950309,0.00019561,20]
[380162627,1755587446277,394.50309541,0.000189,2]
[380162630,1755587446523,-480.0,0.00019178,2]
[380162631,1755587446533,-642.8,0.00019178,2]
[380162632,1755587446543,-642.8,0.00019452,2]
[380162633,1755587446553,-339.98049691,0.00019561,20]
[380162634,1755587446562,-151.0,0.000196,2]
[380162635,1755587446572,-158.4090084,0.00019603,2]
[380162636,1755587446601,-341.5909916,0.00019603,2]
[380162637,1755587446611,-160.0,0.00019604,2]
[380162638,1755587446621,-160.0,0.00019604,2]
[380162639,1755587446635,-160.0,0.00019604,2]
[380162640,1755587446655,-160.0,0.00019604,2]
[380162641,1755587446668,-160.0,0.00019604,2]
[380162642,1755587446678,-160.0,0.00019604,2]
[380162643,1755587446687,-12685.85563623,0.00019604,2]
[380162644,1755587446697,-348.21745417,0.00019604,2]
[380162709,1755587747678,263.00206361,0.000189,2]
[380162710,1755587957182,302.51602579,0.000189,2]
[380162711,1755588049141,175.33470907,0.000189,2]
[380162727,1755588174759,480.0,0.00027945,120]
[380162728,1755588315841,8707.10484112,0.00018321,2]
[380162729,1755588315876,1485.09387948,0.00018321,2]
[380162730,1755588350468,150.0,0.000189,2]
[380162733,1755588445117,-624.895674,0.00019076,2]
[380162734,1755588449884,157.539265,0.00013699,2]
[380162762,1755588632818,-486.104326,0.00019076,2]
[380162764,1755588632827,-1019.44659556,0.00019078,2]
[380162766,1755588632837,-1442.06639537,0.00019078,2]
[380162768,1755588632846,-151.0,0.00019166,2]
[380162769,1755588632855,-210.6,0.00019168,3]
[380162770,1755588632864,-631.85,0.00019168,3]
[380162771,1755588632874,-300.0,0.00019176,2]
[380162772,1755588632883,-1200.0,0.00019176,2]
[380162773,1755588632892,-137.99211747,0.00019177,2]
[380162774,1755588632903,-1062.00788253,0.00019177,2]
[380162775,1755588632913,-207.80306449,0.00019178,2]
[380162776,1755588632922,-480.0,0.00019178,2]
[380162777,1755588632931,-480.0,0.00019178,2]
[380162778,1755588632941,-465.0,0.00019178,2]
[380162779,1755588632950,-480.0,0.00019178,2]
[380162780,1755588632960,-500.0,0.00019178,2]
[380162781,1755588632969,-400.0,0.00019178,2]
[380162782,1755588632979,-480.0,0.00019178,2]
[380162783,1755588632988,-480.0,0.00019178,2]
[380162784,1755588632997,-460.0,0.00019178,2]
[380162785,1755588633007,-480.0,0.00019178,2]
[380162787,1755588633016,-480.0,0.00019178,2]
[380162789,1755588633025,-480.0,0.00019178,2]
[380162790,1755588633035,-480.0,0.00019178,2]
[380162792,1755588633044,-482.48327103,0.00019178,2]
[380162794,1755588633054,-460.0,0.00019178,2]
[380162796,1755588633063,-480.0,0.00019178,2]
[380162798,1755588633072,-481.43828344,0.00019178,2]
[380162800,1755588633081,-480.0,0.00019178,2]
[380162802,1755588633091,-421.23807736,0.00019178,2]
[380162804,1755588633101,-480.0,0.00019178,2]
[380162806,1755588633111,-480.0,0.00019178,2]
[380162808,1755588633121,-480.0,0.00019178,2]
[380162810,1755588633132,-420.0,0.00019178,2]
[380162812,1755588633142,-480.0,0.00019178,2]
[380162814,1755588633152,-480.0,0.00019178,2]
[380162816,1755588633162,-480.0,0.00019178,2]
[380162818,1755588633172,-460.0,0.00019178,2]
[380162819,1755588633181,-480.0,0.00019178,2]
[380162821,1755588633191,-481.27483758,0.00019178,2]
[380162823,1755588633200,-480.0,0.00019178,2]
[380162825,1755588633210,-480.0,0.00019178,2]
[380162827,1755588633220,-480.64785339,0.00019178,2]
[380162829,1755588633230,-481.63900052,0.00019178,2]
[380162831,1755588633239,-480.0,0.00019178,2]
[380162833,1755588633249,-480.0,0.00019178,2]
[380162835,1755588633258,-480.0,0.00019178,2]
[380162837,1755588633268,-480.0,0.00019178,2]
[380162839,1755588633278,-455.66030794,0.00019178,2]
[380162841,1755588633287,-480.0,0.00019178,2]
[380162843,1755588633298,-480.0,0.00019178,2]
[380162845,1755588633307,-480.0,0.00019178,2]
[380162847,1755588633317,-480.0,0.00019178,2]
[380162849,1755588633326,-446.53476415,0.00019178,2]
[380162851,1755588633336,-480.0,0.00019178,2]
[380162853,1755588633346,-480.0,0.00019178,2]
[380162855,1755588633356,-480.0,0.00019178,2]
[380162857,1755588633366,-480.0,0.00019178,2]
[380162859,1755588633378,-420.0,0.00019178,2]
[380162861,1755588633387,-480.0,0.00019178,2]
[380162863,1755588633396,-480.0,0.00019178,2]
[380162865,1755588633406,-460.0,0.00019178,2]
[380162867,1755588633415,-480.0,0.00019178,2]
[380162868,1755588633425,-480.0,0.00019178,2]
[380162870,1755588633434,-500.0,0.00019178,2]
[380162872,1755588633443,-500.0,0.00019178,2]
[380162874,1755588633452,-500.0,0.00019178,2]
[380162876,1755588633462,-458.8,0.00019178,2]
[380162877,1755588633472,-392.97265758,0.00019178,2]
[380162879,1755588633487,-9.22540814,0.00019178,2]
[380162881,1755588633497,-480.0,0.00019178,2]
[380162883,1755588633507,-480.0,0.00019178,2]
[380162885,1755588633517,-480.0,0.00019178,2]
[380162887,1755588633527,-480.0,0.00019178,2]
[380162889,1755588633537,-480.0,0.00019178,2]
[380162891,1755588633547,-480.0,0.00019178,2]
[380162893,1755588633557,-420.0,0.00019178,2]
[380162895,1755588633566,-437.74458953,0.00019178,2]
[380162992,1755588638678,-17910.55234699,0.00019136,2]
[380162993,1755588638688,-42.25541047,0.00019178,2]
[380162994,1755588638698,-480.0,0.00019178,2]
[380162995,1755588638707,-480.0,0.00019178,2]
[380162996,1755588638716,-480.0,0.00019178,2]
[380162997,1755588638726,-500.0,0.00019178,2]
[380162998,1755588638735,-500.0,0.00019178,2]
[380162999,1755588638745,-500.0,0.00019178,2]
[380163000,1755588638754,-480.0,0.00019178,2]
[380163001,1755588638767,-154.78970675,0.00019178,2]
[380163002,1755588638776,-480.0,0.00019178,2]
[380163003,1755588638785,-441.03147058,0.00019178,2]
[380163004,1755588638797,-480.0,0.00019178,2]
[380163005,1755588638807,-400.0,0.00019178,2]
[380163006,1755588638816,-420.0,0.00019178,2]
[380163007,1755588638826,-480.0,0.00019178,2]
[380163008,1755588638835,-420.0,0.00019178,2]
[380163009,1755588638849,-480.0,0.00019178,2]
[380163010,1755588638858,-441.4380161,0.00019178,2]
[380163011,1755588638868,-480.0,0.00019178,2]
[380163012,1755588638877,-480.0,0.00019178,2]
[380163013,1755588638886,-480.0,0.00019178,2]
[380163014,1755588638895,-480.0,0.00019178,2]
[380163015,1755588638905,-480.0,0.00019178,2]
[380163016,1755588638916,-480.0,0.00019178,2]
[380163017,1755588638926,-460.98051936,0.00019178,2]
[380163018,1755588638935,-480.0,0.00019178,2]
[380163019,1755588638945,-480.0,0.00019178,2]
[380163020,1755588638954,-461.89633073,0.00019178,2]
[380163021,1755588638963,-340.0,0.00019178,2]
[380163022,1755588638973,-480.0,0.00019178,2]
[380163023,1755588638982,-480.68664542,0.00019178,2]
[380163024,1755588638992,-480.0,0.00019178,2]
[380163025,1755588639001,-421.07452121,0.00019178,2]
[380163026,1755588639010,-480.0,0.00019178,2]
[380163027,1755588639019,-548.04292298,0.00019178,2]
[380163028,1755588639029,-480.0,0.00019178,2]
[380163029,1755588639038,-480.0,0.00019178,2]
[380163030,1755588639047,-480.0,0.00019178,2]
[380163031,1755588639056,-480.0,0.00019178,2]
[380163032,1755588639065,-480.0,0.00019178,2]
[380163033,1755588639075,-480.0,0.00019178,2]
[380163034,1755588639084,-480.0,0.00019178,2]
[380163035,1755588639094,-371.4002432,0.00019178,2]
[380163036,1755588639103,-480.0,0.00019178,2]
[380163037,1755588639112,-480.0,0.00019178,2]
[380163038,1755588639122,-480.0,0.00019178,2]
[380163039,1755588639131,-480.0,0.00019178,2]
[380163040,1755588639140,-480.0,0.00019178,2]
[380163041,1755588639150,-480.0,0.00019178,2]
[380163042,1755588639160,-480.0,0.00019178,2]
[380163043,1755588639170,-838.78,0.00019178,2]
[380163044,1755588639179,-480.0,0.00019178,2]
[380163045,1755588639188,-480.0,0.00019178,2]
[380163046,1755588639197,-481.78282701,0.00019178,2]
[380163048,1755588639207,-400.97765085,0.00019178,2]
[380163049,1755588639216,-480.0,0.00019178,2]
[380163051,1755588639226,-480.0,0.00019178,2]
[380163053,1755588639235,-480.0,0.00019178,2]
[380163055,1755588639245,-480.0,0.00019178,2]
[380163057,1755588639254,-460.62770357,0.00019178,2]
[380163058,1755588639265,-175.42134369,0.00019178,2]
[380163060,1755588639274,-460.0,0.00019178,2]
[380163062,1755588639283,-480.0,0.00019178,2]
[380163064,1755588639293,-480.0,0.00019178,2]
[380163067,1755588639303,-480.0,0.00019178,2]
[380163069,1755588639312,-480.076681,0.00019178,2]
[380163071,1755588639322,-401.11402265,0.00019178,2]
[380163072,1755588639331,-462.33316428,0.00019178,2]
[380163074,1755588639342,-480.0,0.00019178,2]
[380163076,1755588639351,-480.0,0.00019178,2]
[380163078,1755588639361,-480.0,0.00019178,2]
[380163080,1755588639370,-480.0,0.00019178,2]
[380163082,1755588639379,-480.0,0.00019178,2]
[380163084,1755588639388,-480.0,0.00019178,2]
[380163086,1755588639398,-480.0,0.00019178,2]
[380163088,1755588639407,-480.0,0.00019178,2]
[380163090,1755588639416,-450.75694331,0.00019178,2]
[380163092,1755588639426,-480.63161914,0.00019178,2]
[380163094,1755588639435,-441.38130171,0.00019178,2]
[380163096,1755588639444,-480.0,0.00019178,2]
[380163098,1755588639453,-480.0,0.00019178,2]
[380163100,1755588639462,-480.0,0.00019178,2]
[380163102,1755588639471,-485.22120474,0.00019178,2]
[380163104,1755588639483,-480.0,0.00019178,2]
[380163106,1755588639493,-682.73,0.00019178,2]